bitfinex-derivatives/quotes_SOLF0:USTF0_20250111
["timestamp","ask_amount","ask_price","bid_price","bid_amount"]
[1736571476456,9.90479217,185.92,185.85,7.21509217]
[1736571477461,9.90479217,185.92,185.86,2.6905]
[1736571478171,9.90479217,185.92,185.87,7.21509217]
[1736571480167,7.21509217,185.92,185.87,7.21509217]
[1736571480470,2.6898,185.91,185.87,7.21509217]
[1736571480865,1.547,185.96,185.87,7.21509217]
[1736571481066,7.21509217,185.95,185.89,7.21509217]
[1736571483068,2.6894,185.94,185.89,9.90519217]
[1736571492180,2.6894,185.94,185.89,2.6901]
[1736571492481,2.6899,185.91,185.85,9.90569217]
[1736571492681,9.90499217,185.91,185.85,9.90569217]
[1736571494184,7.21509217,185.89,185.81,4.7303]
[1736571494380,7.21509217,185.89,185.82,12.61509217]
[1736571494879,2.6905,185.87,185.82,15.30619217]
[1736571495678,2.6905,185.87,185.82,9.90619217]
[1736571500181,7.21509217,185.89,185.84,7.21509217]
[1736571500687,2.6901,185.9,185.84,9.90579217]
[1736571500887,3.2994,185.95,185.86,7.21509217]
[1736571501087,7.21509217,185.93,185.81,10.1303]
[1736571501290,7.21509217,185.93,185.87,7.21509217]
[1736571502082,2.6898,185.91,185.87,7.21509217]
[1736571506495,3.2994,185.95,185.87,7.21509217]
[1736571506702,2.6897,185.92,185.87,9.90549217]
[1736571508392,2.6897,185.92,185.81,10.1303]
[1736571508393,2.6901,185.89,185.85,9.90569217]
[1736571508591,7.21509217,185.89,185.83,12.61509217]
[1736571510097,2.6905,185.87,185.83,12.61509217]
[1736571514802,2.6903,185.88,185.83,15.30609217]
[1736571518010,2.6908,185.84,185.79,2.6915]
[1736571518196,2.6908,185.84,185.78,7.21509217]
[1736571519007,2.6908,185.84,185.78,9.90669217]
[1736571519804,2.6908,185.84,185.78,2.6916]
[1736571520007,2.6908,185.84,185.78,9.90669217]
[1736571521005,2.6908,185.84,185.79,2.6915]
[1736571523614,2.6908,185.84,185.79,9.90659217]
[1736571524812,2.6907,185.85,185.79,9.90659217]
[1736571525310,7.21509217,185.86,185.79,9.90659217]
[1736571525512,2.6908,185.84,185.79,9.90659217]
[1736571533216,2.6908,185.84,185.79,2.6915]
[1736571533415,2.691,185.83,185.79,7.21509217]
[1736571544623,2.691,185.83,185.78,9.90679217]
[1736571552623,10.10500956,185.89,185.8,7.21509217]
[1736571552624,7.21509217,185.87,185.8,7.21509217]
[1736571552928,7.21509217,185.89,185.82,7.21509217]
[1736571553328,149.23380143,185.9,185.84,7.21509217]
[1736571553631,149.23380143,185.92,185.87,2.6904]
[1736571554027,149.23380143,185.92,185.88,7.21509217]
[1736571554331,2.6897,185.92,185.88,7.21509217]
[1736571554727,7.21509217,185.9,185.82,5.4]
[1736571554934,7.21509217,185.9,185.84,7.21509217]
[1736571555832,2.6903,185.88,185.84,7.21509217]
[1736571563141,2.6901,185.89,185.84,7.21509217]
[1736571566940,8.55308692,185.94,185.86,7.21509217]
[1736571567239,2.6899,185.91,185.86,9.90569217]
[1736571573042,7.21509217,185.91,185.86,7.21509217]
[1736571573243,7.21509217,185.89,185.84,7.21509217]
[1736571573441,7.21509217,185.89,185.82,7.21509217]
[1736571575251,2.6904,185.88,185.82,9.90619217]
[1736571579655,2.6904,185.88,185.84,7.21509217]
[1736571579859,7.21509217,185.89,185.84,7.21509217]
[1736571580062,7.21509217,185.91,185.86,7.21509217]
[1736571580662,2.69,185.9,185.86,7.21509217]
[1736571583561,2.6897,185.92,185.87,2.6903]
[1736571583762,7.21509217,185.94,185.86,7.21509217]
[1736571584357,2.6897,185.92,185.87,2.6904]
[1736571591271,2.6899,185.91,185.86,9.90559217]
[1736571591470,7.21509217,185.92,185.86,7.21509217]
[1736571592572,7.21509217,185.9,185.83,7.21509217]
[1736571592868,7.21509217,185.88,185.81,10.31679217]
[1736571593466,2.6904,185.87,185.81,10.31679217]
[1736571594275,2.6904,185.87,185.81,13.00809217]
[1736571594667,2.6904,185.87,185.83,7.21509217]
[1736571597475,2.6902,185.89,185.83,7.21509217]
[1736571598177,2.6903,185.88,185.83,7.21509217]
[1736571598876,7.21509217,185.9,185.83,7.21509217]
[1736571599079,2.6908,185.85,185.81,7.21509217]
[1736571600172,7.21509217,185.86,185.73,4.692]
[1736571600378,7.21509217,185.84,185.77,2.6917]
[1736571600579,7.21509217,185.84,185.78,7.21509217]
[1736571601782,2.691,185.83,185.78,7.21509217]
[1736571603480,9.90599217,185.84,185.78,9.90679217]
[1736571603673,7.21509217,185.86,185.8,7.21509217]
[1736571604270,9.90569217,185.86,185.8,7.21509217]
[1736571604475,9.90569217,185.86,185.8,9.90649217]
[1736571604985,2.6908,185.85,185.8,7.21509217]
[1736571607076,7.21509217,185.86,185.8,9.90649217]
[1736571607380,2.6906,185.87,185.82,7.21509217]
[1736571608782,7.21509217,185.88,185.82,7.21509217]
[1736571608981,2.6906,185.86,185.82,7.21509217]
[1736571609381,2.6903,185.88,185.82,7.21509217]
[1736571609684,7.21509217,185.9,185.84,7.21509217]
[1736571610284,4.7627,185.93,185.84,7.21509217]
[1736571610483,7.21509217,185.91,185.84,7.21509217]
[1736571610686,2.6903,185.89,185.84,9.90589217]
[1736571610880,7.21509217,185.87,185.82,5.4]
[1736571612085,2.6907,185.85,185.82,5.4]
[1736571613884,7.21509217,185.87,185.82,5.4]
[1736571614086,2.6906,185.86,185.82,5.4]
[1736571615976,11.63748692,185.93,185.83,9.90609217]
[1736571616174,7.21509217,185.9,185.83,9.90609217]
[1736571617082,2.6902,185.89,185.83,9.90609217]
[1736571618086,7.21509217,185.9,185.83,9.90609217]
[1736571618281,7.21509217,185.88,185.82,5.4]
[1736571620091,2.6906,185.86,185.82,5.4]
[1736571625689,2.6903,185.88,185.83,7.21509217]
[1736571627091,2.6903,185.88,185.84,2.6908]
[1736571627691,11.63586846,185.93,185.85,7.21509217]
[1736571627893,2.69,185.9,185.85,7.21509217]
[1736571628193,2.69,185.9,185.85,9.90579217]
[1736571628889,2.6902,185.89,185.85,7.21509217]
[1736571631796,2.6902,185.89,185.84,2.6908]
[1736571633297,2.6902,185.89,185.83,7.21509217]
[1736571633498,2.6902,185.89,185.83,9.90609217]
[1736571633995,7.21509217,185.88,185.81,8.86389217]
[1736571634192,7.21509217,185.88,185.8,5.4]
[1736571634392,7.21509217,185.88,185.8,12.61509217]
[1736571635097,2.6907,185.85,185.8,15.30649217]
[1736571639099,7.21509217,185.84,185.78,7.21509217]
[1736571639297,7.21509217,185.84,185.76,36.03313679]
[1736571639492,7.21509217,185.82,185.77,7.21509217]
[1736571640198,7.21509217,185.82,185.76,36.03313679]
[1736571640501,9.90659217,185.8,185.74,9.90729217]
[1736571642004,6.87316846,185.85,185.73,7.21509217]
[1736571642204,7.21509217,185.79,185.73,7.21509217]
[1736571642801,2.6917,185.78,185.73,7.21509217]
[1736571643605,7.21509217,185.79,185.73,7.21509217]
[1736571643805,2.6916,185.79,185.73,9.90749217]
[1736571644302,2.6916,185.79,185.75,7.21509217]
[1736571646405,2.6916,185.79,185.73,2.6924]
[1736571646605,2.6916,185.79,185.75,7.21509217]
[1736571647107,2.6914,185.8,185.75,7.21509217]
[1736571647294,7.21509217,185.81,185.75,7.21509217]
[1736571648005,2.6914,185.8,185.75,7.21509217]
[1736571648600,2.6914,185.8,185.75,9.90719217]
[1736571650503,7.21509217,185.77,185.68,36.04691763]
[1736571650710,7.21509217,185.73,185.67,3.228]
[1736571651104,2.6929,185.71,185.67,3.228]
[1736571658014,195.0,185.83,185.67,10.44309217]
[1736571658211,7.21509217,185.75,185.69,7.21509217]
[1736571658406,195.0,185.83,185.69,7.21509217]
[1736571658612,7.21509217,185.76,185.71,2.6927]
[1736571659610,2.6923,185.74,185.69,2.6929]
[1736571659916,9.90739217,185.74,185.69,2.6929]
[1736571660415,7.21509217,185.72,185.67,3.228]
[1736571660913,7.21509217,185.72,185.66,8.79799217]
[1736571662113,2.6929,185.7,185.66,8.79799217]
[1736571663317,2.6927,185.71,185.66,11.49139217]
[1736571664723,2.6927,185.71,185.66,8.79799217]
[1736571665621,7.21509217,185.72,185.67,2.6933]
[1736571666919,7.21509217,185.72,185.66,8.79799217]
[1736571667123,9.90779217,185.72,185.66,11.49139217]
[1736571668022,7.21509217,185.68,185.66,1.5829]
[1736571668222,7.21509217,185.68,185.61,3.1995]
[1736571668426,7.21509217,185.63,185.5,1.659]
[1736571668731,2.6941,185.62,185.57,7.21509217]
[1736571669027,7.21509217,185.63,185.57,7.21509217]
[1736571669428,2.694,185.62,185.57,7.21509217]
[1736571670536,2.694,185.62,185.55,8.095]
[1736571670842,2.694,185.62,185.56,7.21509217]
[1736571671627,7.21509217,185.63,185.56,7.21509217]
[1736571671829,7.21509217,185.61,185.55,12.61509217]
[1736571672031,7.21509217,185.61,185.55,7.21509217]
[1736571672225,2.6946,185.58,185.52,6.9312]
[1736571672533,2.6946,185.58,185.53,7.21509217]
[1736571673134,2.6948,185.57,185.52,5.4]
[1736571673633,2.6948,185.57,185.51,8.78569217]
[1736571674742,2.6951,185.55,185.51,1.5706]
[1736571674927,2.6951,185.55,185.51,7.21509217]
[1736571675126,7.21509217,185.57,185.5,1.659]
[1736571675335,7.21509217,185.53,185.5,1.659]
[1736571675536,7.21509217,185.53,185.46,7.21509217]
[1736571675937,7.21509217,185.51,185.42,2.6969]
[1736571676133,7.21509217,185.51,185.44,7.21509217]
[1736571676527,7.21509217,185.49,185.44,7.21509217]
[1736571678433,7.21509217,185.49,185.42,2.6968]
[1736571678635,7.21509217,185.49,185.42,9.91189217]
[1736571679334,7.21509217,185.47,185.41,9.91219217]
[1736571680241,2.6965,185.45,185.39,1.5481]
[1736571680438,7.21509217,185.45,185.39,7.21509217]
[1736571681235,7.21509217,185.43,185.38,3.1965]
[1736571681439,7.21509217,185.43,185.37,2.6976]
[1736571682241,7.21509217,185.43,185.37,9.91269217]
[1736571682939,7.21509217,185.43,185.38,7.21509217]
[1736571683333,2.6965,185.45,185.37,2.6976]
[1736571684638,11.31612457,185.47,185.37,2.6976]
[1736571684945,11.31612457,185.44,185.35,14.01392457]
[1736571685335,2.6971,185.41,185.33,2.6982]
[1736571685837,2.6971,185.41,185.32,8.5305]
[1736571686736,2.6971,185.41,185.32,3.1305]
[1736571687242,2.6971,185.41,185.34,2.6981]
[1736571687540,11.31612457,185.44,185.32,3.1305]
[1736571687741,11.31612457,185.44,185.32,2.6984]
[1736571688140,11.31612457,185.41,185.3,6.40802457]
[1736571688337,11.31612457,185.41,185.3,0.28832457]
[1736571690134,14.01332457,185.41,185.34,2.6981]
[1736571693241,14.01332457,185.41,185.35,2.698]
[1736571695548,2.6969,185.42,185.35,2.698]
[1736571695846,11.31612457,185.47,185.33,11.31612457]
[1736571696850,16.70412457,185.47,185.33,11.31612457]
[1736571697248,2.6967,185.44,185.33,11.31612457]
[1736571698347,2.6967,185.44,185.37,2.6975]
[1736571699146,2.6967,185.44,185.33,11.31612457]
[1736571699347,2.6968,185.43,185.38,2.6975]
[1736571701845,2.6971,185.41,185.36,2.6977]
[1736571702144,11.31612457,185.44,185.31,5.42]
[1736571702443,2.6974,185.4,185.35,2.6979]
[1736571703244,7.24587678,185.39,185.35,2.6979]
[1736571704445,2.6974,185.4,185.35,2.6979]
[1736571716856,2.6975,185.38,185.33,2.6981]
[1736571717157,2.6975,185.38,185.31,5.42]
[1736571717554,2.6975,185.38,185.32,2.6983]
[1736571717759,2.6975,185.38,185.31,5.42]
[1736571717955,2.6975,185.38,185.32,7.24587678]
[1736571719156,2.6975,185.38,185.33,2.6982]
[1736571719758,9.94357678,185.37,185.32,2.6984]
[1736571724559,7.24587678,185.35,185.3,9.94447678]
[1736571725260,7.24587678,185.35,185.3,2.6986]
[1736571726861,7.24587678,185.35,185.28,7.24587678]
[1736571727063,2.6981,185.34,185.28,9.94487678]
[1736571729858,2.6983,185.33,185.28,9.94487678]
[1736571733657,2.6983,185.33,185.28,7.24587678]
[1736571734561,9.94417678,185.33,185.28,7.24587678]
[1736571735766,2.6987,185.3,185.24,2.6995]
[1736571736062,7.24587678,185.31,185.24,9.94537678]
[1736571736761,7.24587678,185.31,185.24,2.6995]
[1736571736963,7.24587678,185.31,185.24,9.94537678]
[1736571737163,2.6987,185.3,185.24,9.94537678]
[1736571737559,6.81494276,185.37,185.26,7.24587678]
[1736571737763,6.81494276,185.39,185.3,7.24587678]
[1736571737964,7.24587678,185.36,185.3,7.24587678]
[1736571738766,2.6977,185.37,185.3,9.94457678]
[1736571738962,7.24587678,185.36,185.3,9.94457678]
[1736571739271,7.24587678,185.34,185.28,7.24587678]
[1736571739561,2.6984,185.33,185.26,9.94507678]
[1736571739963,9.94427678,185.32,185.26,2.6992]
[1736571740359,7.24587678,185.3,185.24,9.94527678]
[1736571740562,2.6988,185.29,185.24,9.94527678]
[1736571740766,2.6988,185.29,185.23,3.2009]
[1736571740966,2.6988,185.29,185.23,5.9006]
[1736571743468,2.6988,185.29,185.23,3.2009]
[1736571744771,7.24587678,185.28,185.23,3.2009]
[1736571745065,7.24587678,185.28,185.23,5.9006]
[1736571746470,7.24587678,185.28,185.24,2.6996]
[1736571747169,7.24587678,185.28,185.23,3.2009]
[1736571749167,2.6991,185.27,185.23,3.2009]
[1736571749969,7.24587678,185.26,185.19,1.6536]
[1736571750182,28.76350336,185.35,185.16,5.42]
[1736571750367,7.24587678,185.24,185.18,7.24587678]
[1736571750973,12.61350336,185.36,185.18,7.24587678]
[1736571751174,7.24587678,185.24,185.19,2.7002]
[1736571751367,7.24587678,185.24,185.2,3.1783]
[1736571752076,7.24587678,185.24,185.22,2.6997]
[1736571753576,2.699,185.28,185.22,2.6997]
[1736571753777,7.24587678,185.25,185.23,2.6996]
[1736571754168,7.24587678,185.28,185.23,2.6996]
[1736571758878,7.24587678,185.28,185.22,7.24587678]
[1736571759079,7.24587678,185.28,185.24,2.6996]
[1736571769786,7.24587678,185.28,185.23,2.6997]
[1736571770588,2.6987,185.31,185.25,2.6994]
[1736571770787,7.24587678,185.3,185.25,2.6994]
[1736571771288,2.6987,185.31,185.25,2.6994]
[1736571771485,7.24587678,185.3,185.25,2.6994]
[1736571776391,2.6987,185.31,185.25,2.6994]
[1736571776591,7.22550336,185.36,185.25,7.24587678]
[1736571776891,7.24587678,185.35,185.29,7.24587678]
[1736571777288,7.24587678,185.35,185.31,2.6984]
[1736571777888,7.24587678,185.35,185.3,2.6987]
[1736571781005,7.23938706,185.41,185.29,10.58217678]
[1736571781302,7.24587678,185.37,185.31,7.24587678]
[1736571781491,7.23938706,185.41,185.31,7.24587678]
[1736571781697,7.24587678,185.38,185.34,2.6981]
[1736571781897,6.30560731,185.42,185.35,7.24587678]
[1736571782097,7.24587678,185.41,185.35,7.24587678]
[1736571782299,6.30560731,185.42,185.35,7.24587678]
[1736571782603,13.55148409,185.42,185.35,7.24587678]
[1736571782798,13.55148409,185.42,185.36,2.6978]
[1736571782996,7.24587678,185.42,185.36,2.6978]
[1736571783594,7.23938706,185.47,185.36,2.6978]
[1736571783802,7.24587678,185.41,185.36,2.6978]
[1736571784498,14.8739667,185.5,185.36,2.6978]
[1736571784805,7.24587678,185.41,185.36,2.6978]
[1736571785804,2.6969,185.43,185.37,2.6977]
[1736571786203,7.24587678,185.42,185.37,7.24587678]
[1736571786398,7.24587678,185.42,185.39,2.6972]
[1736571786703,7.23938706,185.5,185.41,7.24587678]
[1736571786904,64.68732569,185.51,185.43,7.24587678]
[1736571787103,7.24587678,185.49,185.43,7.24587678]
[1736571788104,7.24587678,185.49,185.44,2.6965]
[1736571788704,7.24587678,185.45,185.39,3.1498]
[1736571789505,7.24587678,185.45,185.39,5.847]
[1736571789898,7.24587678,185.45,185.39,3.1498]
[1736571790698,7.24587678,185.45,185.4,7.24587678]
[1736571791099,7.24587678,185.45,185.4,9.94307678]
[1736571793305,7.24587678,185.46,185.41,2.697]
[1736571795210,7.24587678,185.42,185.35,7.24587678]
[1736571795610,7.24587678,185.44,185.38,2.6975]
[1736571796700,7.24587678,185.44,185.39,2.6974]
[1736571796908,7.24587678,185.44,185.39,7.24587678]
[1736571797103,7.24587678,185.46,185.39,7.24587678]
[1736571797814,7.24587678,185.46,185.4,2.6972]
[1736571798408,9.94227678,185.46,185.4,2.6972]
[1736571800813,9.94227678,185.46,185.39,7.24587678]
[1736571800814,7.24587678,185.46,185.41,2.697]
[1736571801507,61.99152569,185.51,185.41,7.24587678]
[1736571801708,61.99152569,185.51,185.36,3.2673]
[1736571801709,7.24587678,185.5,185.43,7.24587678]
[1736571802613,61.99152569,185.51,185.46,2.6963]
[1736571802811,16.24454671,185.52,185.47,7.24587678]
[1736571802812,7.24587678,185.52,185.47,7.24587678]
[1736571803111,7.24587678,185.54,185.47,7.24587678]
[1736571803321,7.24587678,185.56,185.49,7.24587678]
[1736571804011,7.24587678,185.56,185.51,2.6956]
[1736571804212,7.24587678,185.56,185.49,7.24587678]
[1736571804813,7.24587678,185.56,185.5,2.6958]
[1736571808717,2.6953,185.53,185.47,2.6961]
[1736571808915,7.24587678,185.54,185.47,2.6961]
[1736571809313,7.24587678,185.54,185.48,7.24587678]
[1736571810120,9.94107678,185.54,185.48,7.24587678]
[1736571812216,7.24587678,185.54,185.48,9.94197678]
[1736571812417,7.24587678,185.56,185.5,7.24587678]
[1736571812619,61.95782187,185.62,185.5,7.24587678]
[1736571812620,7.24587678,185.58,185.5,7.24587678]
[1736571812819,7.24587678,185.58,185.52,7.24587678]
[1736571813018,7.24587678,185.58,185.54,2.6952]
[1736571814719,7.24587678,185.58,185.53,2.6953]
[1736571818220,7.24587678,185.6,185.54,7.24587678]
[1736571818420,7.24587678,185.6,185.55,2.695]
[1736571818617,2.6942,185.61,185.55,2.695]
[1736571818814,69.20369865,185.62,185.56,9.94077678]
[1736571820015,7.24587678,185.62,185.56,9.94077678]
[1736571820220,2.6936,185.66,185.6,7.24587678]
[1736571820417,9.93947678,185.66,185.6,7.24587678]
[1736571820623,7.24587678,185.66,185.6,7.24587678]
[1736571821116,7.24587678,185.68,185.6,7.24587678]
[1736571821523,9.93917678,185.68,185.62,2.694]
[1736571822022,2.6934,185.67,185.6,9.94007678]
[1736571822521,5.4,185.74,185.6,9.94007678]
[1736571822522,7.24587678,185.66,185.6,9.94007678]
[1736571822721,9.93937678,185.66,185.6,7.24587678]
[1736571822919,9.93937678,185.66,185.61,2.6941]
[1736571823114,7.24587678,185.66,185.61,2.6941]
[1736571823313,7.24587678,185.68,185.6,7.24587678]
[1736571823522,7.24587678,185.68,185.63,2.6939]
[1736571823913,7.24587678,185.68,185.62,7.24587678]
[1736571823914,7.24587678,185.7,185.65,2.6936]
[1736571824113,7.24587678,185.7,185.57,4.94]
[1736571824320,7.24587678,185.7,185.63,7.24587678]
[1736571824522,9.93887678,185.7,185.63,9.93967678]
[1736571824720,7.24587678,185.7,185.63,9.93967678]
[1736571825218,16.15,185.77,185.63,9.93967678]
[1736571825415,7.24587678,185.69,185.63,9.93967678]
[1736571825921,7.24587678,185.69,185.64,2.6937]
[1736571826120,7.24587678,185.69,185.63,7.24587678]
[1736571826321,7.24587678,185.71,185.63,7.24587678]
[1736571826522,7.24587678,185.71,185.63,12.64587678]
[1736571827126,7.24587678,185.71,185.65,2.6935]
[1736571827826,7.24587678,185.69,185.61,5.4]
[1736571828029,7.24587678,185.65,185.6,7.24587678]
[1736571828325,7.24587678,185.63,185.58,5.4]
[1736571828628,9.93977678,185.63,185.58,5.4]
[1736571828822,2.6939,185.63,185.58,5.4]
[1736571829129,7.24587678,185.65,185.59,7.24587678]
[1736571830129,2.6938,185.64,185.59,7.24587678]
[1736571830331,7.24587678,185.67,185.59,7.24587678]
[1736571830727,9.93927678,185.67,185.6,2.6943]
[1736571830928,9.93927678,185.67,185.61,7.24587678]
[1736571831329,2.6935,185.66,185.61,7.24587678]
[1736571833431,2.6935,185.66,185.61,9.94007678]
[1736571834035,2.6936,185.65,185.59,7.24587678]
[1736571834228,7.24587678,185.67,185.59,7.24587678]
[1736571834533,2.6932,185.68,185.63,9.93977678]
[1736571836226,7.24587678,185.69,185.63,7.24587678]
[1736571836437,2.6933,185.67,185.63,7.24587678]
[1736571838734,2.6933,185.67,185.62,2.694]
[1736571840736,2.6933,185.67,185.61,7.24587678]
[1736571842136,2.6933,185.67,185.61,9.94007678]
[1736571842527,16.15,185.76,185.63,7.24587678]
[1736571842733,7.24587678,185.72,185.65,7.24587678]
[1736571842931,7.24587678,185.72,185.67,7.24587678]
[1736571843237,7.24587678,185.74,185.67,7.24587678]
[1736571843735,7.24587678,185.76,185.69,7.24587678]
[1736571843928,2.6922,185.75,185.7,2.6929]
[1736571844133,2.6922,185.75,185.71,7.24587678]
[1736571844533,2.692,185.76,185.71,7.24587678]
[1736571844734,61.90695127,185.79,185.73,7.24587678]
[1736571845136,61.90695127,185.79,185.75,7.24587678]
[1736571847336,64.59865127,185.79,185.73,7.24587678]
[1736571847534,61.90695127,185.79,185.73,7.24587678]
[1736571848238,2.6918,185.78,185.73,7.24587678]
[1736571849337,2.692,185.76,185.71,9.93857678]
[1736571850339,2.692,185.76,185.71,7.24587678]
[1736571851536,61.90695127,185.79,185.73,7.24587678]
[1736571851742,69.15282805,185.79,185.73,7.24587678]
[1736571852538,2.6917,185.78,185.73,7.24587678]
[1736571853341,2.6917,185.78,185.72,2.6924]
[1736571859352,61.90695127,185.79,185.74,2.6923]
[1736571860845,15.76939258,185.82,185.75,2.692]
[1736571861256,2.6913,185.82,185.75,2.692]
[1736571861549,2.6913,185.82,185.75,5.871]
[1736571862254,2.6913,185.82,185.75,3.179]
[1736571862457,2.6913,185.82,185.76,2.692]
[1736571863257,2.6913,185.81,185.76,2.692]
[1736571863760,2.6914,185.8,185.75,5.8711]
[1736571873361,2.6914,185.8,185.75,13.08492194]
[1736571876558,7.21382194,185.83,185.77,7.21382194]
[1736571876761,2.6912,185.82,185.77,9.90562194]
[1736571878564,2.6913,185.81,185.77,9.90562194]
[1736571879971,7.21382194,185.85,185.79,7.21382194]
[1736571881069,2.691,185.83,185.79,7.21382194]
[1736571885165,2.6906,185.86,185.81,9.90512194]
[1736571885963,13.50413547,185.88,185.81,9.90512194]
[1736571886163,2.6908,185.85,185.81,7.21382194]
[1736571889568,13.50413547,185.88,185.81,7.21382194]
[1736571889771,6.29031353,185.88,185.83,9.90472194]
[1736571890070,6.29031353,185.88,185.85,7.21382194]
[1736571890370,6.29031353,185.88,185.87,7.21382194]
[1736571891063,2.6901,185.9,185.87,7.21382194]
[1736571891371,2.6901,185.9,185.84,2.6908]
[1736571891571,2.6901,185.9,185.86,7.21382194]
[1736571900071,9.90352194,185.92,185.86,9.90432194]
[1736571900466,2.6897,185.92,185.88,7.21382194]
[1736571900872,7.21382194,185.94,185.88,7.21382194]
[1736571901075,7.21382194,185.96,185.9,7.21382194]
[1736571902075,2.6895,185.94,185.9,7.21382194]
[1736571903666,7.21382194,185.98,185.92,7.21382194]
[1736571904277,2.6891,185.97,185.92,7.21382194]
[1736571904676,2.6891,185.97,185.92,9.90352194]
[1736571906178,2.6891,185.97,185.92,7.21382194]
[1736571914180,96.72961137,186.07,185.94,7.21382194]
[1736571914481,7.21382194,186.03,185.98,7.21382194]
[1736571914880,2.6885,186.01,185.98,7.21382194]
[1736571916081,2.6882,186.02,185.98,7.21382194]
[1736571916281,96.72961137,186.07,185.9,1.6381]
[1736571916282,103.94343331,186.07,186.0,7.21382194]
[1736571916679,2.688,186.04,186.0,7.21382194]
[1736571917381,7.21382194,186.05,185.96,3.1264]
[1736571917575,7.21382194,186.05,185.9,1.6381]
[1736571917576,7.21382194,185.99,185.92,7.21382194]
[1736571917782,7.21382194,185.97,185.9,1.6381]
[1736571918081,7.21382194,185.97,185.91,7.21382194]
[1736571918287,118.27761137,186.07,185.95,7.21382194]
[1736571918288,7.21382194,186.01,185.95,7.21382194]
[1736571918484,7.21382194,186.02,185.95,7.21382194]
[1736571918985,2.6886,186.0,185.95,9.90302194]
[1736571919185,7.21382194,186.04,185.97,7.21382194]
[1736571920188,2.6883,186.02,185.97,7.21382194]
[1736571920389,2.6883,186.02,185.99,7.21382194]
[1736571920985,2.6883,186.02,185.96,2.689]
[1736571921184,2.6883,186.02,185.98,7.21382194]
[1736571924392,2.688,186.04,186.0,7.21382194]
[1736571924893,2.688,186.04,186.0,9.90232194]
[1736571925287,9.05805149,186.1,186.02,7.21382194]
[1736571925493,9.05805149,186.1,185.97,4.8664]
[1736571925494,9.05805149,186.1,186.04,7.21382194]
[1736571925685,9.05805149,186.1,185.97,4.8664]
[1736571925890,2.6879,186.05,186.02,7.21382194]
[1736571926792,2.6879,186.05,185.97,4.8664]
[1736571926989,2.6879,186.05,186.02,7.21382194]
[1736571927296,2.6874,186.08,186.02,7.21382194]
[1736571927595,7.21382194,186.09,186.02,7.21382194]
[1736571928096,7.21382194,186.07,185.99,2.6885]
[1736571928297,7.21382194,186.07,186.01,7.21382194]
[1736571928597,2.6879,186.05,186.01,7.21382194]
[1736571929897,2.6879,186.05,186.03,7.21382194]
[1736571938004,9.05805149,186.1,186.03,7.21382194]
[1736571938301,2.6877,186.07,186.05,7.21382194]
[1736571941705,2.687,186.11,186.05,7.21382194]
[1736571941907,7.21382194,186.12,186.05,7.21382194]
[1736571942307,2.6872,186.09,186.05,7.21382194]
[1736571945697,2.6872,186.09,186.07,7.21382194]
[1736571947602,2.6877,186.06,186.03,7.21382194]
[1736571948002,7.21382194,186.07,185.97,4.8664]
[1736571948198,7.21382194,186.05,185.99,7.21382194]
[1736571948506,7.21382194,186.05,185.97,4.8664]
[1736571948703,2.6886,186.0,185.97,12.08022194]
[1736571949599,7.21382194,186.03,185.97,10.41922194]
[1736571949600,2.6887,185.99,185.97,10.41922194]
[1736571950005,7.21382194,186.03,185.97,10.41922194]
[1736571950206,2.6885,186.0,185.97,10.41922194]
[1736571951805,2.688,186.04,185.99,7.21382194]
[1736571952009,2.688,186.04,186.01,7.21382194]
[1736571956210,2.6881,186.03,186.01,7.21382194]
[1736571957502,2.688,186.04,186.01,7.21382194]
[1736571958713,2.6881,186.03,185.98,1.5917]
[1736571958912,2.6881,186.03,186.0,7.21382194]
[1736571959112,7.21382194,186.08,186.0,7.21382194]
[1736571959309,2.6882,186.03,186.0,7.21382194]
[1736571960614,2.6882,186.03,185.98,4.2805]
[1736571960809,2.6882,186.03,186.0,7.21382194]
[1736571962016,2.6879,186.05,186.0,7.21382194]
[1736571962218,7.21382194,186.08,186.0,7.21382194]
[1736571962719,7.21382194,186.08,185.97,3.2054]
[1736571962720,7.21382194,186.04,185.97,10.41922194]
[1736571964219,2.6886,186.0,185.97,10.41922194]
[1736571964518,7.21382194,186.04,185.97,10.41922194]
[1736571964927,2.6888,185.98,185.97,8.82032194]
[1736571965122,7.21382194,186.0,185.89,1.6371]
[1736571965421,16.16,186.04,185.93,7.21382194]
[1736571965623,2.6889,185.98,185.93,7.21382194]
[1736571965821,2.6889,185.98,185.95,7.21382194]